fUST/lending_fUST_20241104
["ID","MTS","AMOUNT","RATE_DAILY","PERIOD"]
[341255628,1730729442319,-500.0,0.00032876,4]
[341255630,1730729442328,-510.93487756,0.00032876,4]
[341255632,1730729442338,-500.0,0.00032876,4]
[341255635,1730729442349,-151.0,0.00032876,7]
[341255637,1730729442359,-500.0,0.00032876,4]
[341255639,1730729442369,-151.0,0.00032876,7]
[341255642,1730729442379,-500.0,0.00032876,4]
[341255645,1730729442388,-505.00537406,0.00032876,4]
[341255647,1730729442398,-500.0,0.00032876,4]
[341255650,1730729442407,-500.0,0.00032876,4]
[341255653,1730729442417,-500.0,0.00032876,4]
[341255658,1730729442430,-500.0,0.00032876,4]
[341255661,1730729442440,-500.0,0.00032876,4]
[341255664,1730729442449,-500.0,0.00032876,4]
[341255667,1730729442458,-200.0,0.00032876,4]
[341255670,1730729442468,-151.0,0.00032876,7]
[341255672,1730729442477,-151.0,0.00032876,7]
[341255675,1730729442487,-500.0,0.00032876,4]
[341255677,1730729442496,-483.56748908,0.00032876,4]
[341255679,1730729442505,-500.0,0.00032876,4]
[341255681,1730729442514,-500.0,0.00032876,4]
[341255683,1730729442523,-372.70773661,0.00032876,4]
[341255684,1730729442532,-500.0,0.00032876,4]
[341255685,1730729442541,-500.0,0.00032876,4]
[341255686,1730729442550,-500.0,0.00032876,4]
[341255688,1730729442560,-580.99515044,0.00032876,4]
[341255689,1730729442570,-500.0,0.00032876,4]
[341255690,1730729442579,-500.0,0.00032876,4]
[341255691,1730729442589,-500.0,0.00032876,4]
[341255692,1730729442598,-151.0,0.00032876,7]
[341255693,1730729442607,-151.0,0.00032876,7]
[341255694,1730729442618,-500.0,0.00032876,4]
[341255695,1730729442627,-505.45623065,0.00032876,4]
[341255696,1730729442637,-500.0,0.00032876,4]
[341255697,1730729442646,-500.0,0.00032876,4]
[341255698,1730729442655,-209.57763519,0.00032876,4]
[341255699,1730729442665,-500.0,0.00032876,4]
[341255700,1730729442674,-500.0,0.00032876,4]
[341255701,1730729442683,-500.0,0.00032876,4]
[341255702,1730729442693,-500.0,0.00032876,4]
[341255703,1730729442702,-511.97856969,0.00032876,4]
[341255704,1730729442711,-500.0,0.00032876,4]
[341255705,1730729442720,-573.30343414,0.00032876,4]
[341255706,1730729442730,-500.0,0.00032876,4]
[341255707,1730729442739,-500.0,0.00032876,4]
[341255708,1730729442748,-500.0,0.00032876,4]
[341255709,1730729442758,-500.0,0.00032876,4]
[341255710,1730729442767,-500.0,0.00032876,4]
[341255711,1730729442776,-500.0,0.00032876,4]
[341255712,1730729442786,-500.0,0.00032876,4]
[341255713,1730729442795,-500.0,0.00032876,4]
[341255715,1730729442805,-500.0,0.00032876,4]
[341255716,1730729442814,-225.862378,0.00032876,7]
[341255717,1730729442823,-500.0,0.00032876,4]
[341255718,1730729442833,-574.19,0.00032876,4]
[341255719,1730729442842,-516.44341833,0.00032876,4]
[341255720,1730729442852,-513.64450382,0.00032876,4]
[341255721,1730729442861,-500.0,0.00032876,4]
[341255722,1730729442871,-500.0,0.00032876,4]
[341255723,1730729442880,-500.0,0.00032876,4]
[341255724,1730729442890,-500.0,0.00032876,4]
[341255726,1730729442899,-500.0,0.00032876,4]
[341255728,1730729442908,-500.0,0.00032876,4]
[341255730,1730729442918,-1928.23,0.00032876,4]
[341255732,1730729442927,-1928.23,0.00032876,4]
[341255734,1730729442937,-1928.23,0.00032876,4]
[341255735,1730729442946,-1928.23,0.00032876,4]
[341255736,1730729442956,-1928.23,0.00032876,4]
[341255737,1730729442966,-1928.23,0.00032876,4]
[341255738,1730729442975,-1928.23,0.00032876,4]
[341255739,1730729442986,-1928.23,0.00032876,4]
[341255740,1730729442995,-1928.23,0.00032876,4]
[341255741,1730729443005,-193.030953,0.00032876,7]
[341255742,1730729443015,-1928.23,0.00032876,4]
[341255743,1730729443025,-193.030953,0.00032876,7]
[341255744,1730729443035,-523.82814852,0.00032876,4]
[341255745,1730729443044,-1928.23,0.00032876,4]
[341255746,1730729443054,-1928.23,0.00032876,4]
[341255747,1730729443063,-1928.23,0.00032876,4]
[341255748,1730729443073,-1928.23,0.00032876,4]
[341255749,1730729443082,-500.0,0.00032876,4]
[341255750,1730729443091,-1928.23,0.00032876,4]
[341255751,1730729443101,-563.08931679,0.00032876,4]
[341255752,1730729443111,-193.030953,0.00032876,7]
[341255753,1730729443122,-193.030953,0.00032876,7]
[341255754,1730729443131,-500.0,0.00032876,4]
[341255756,1730729443140,-500.0,0.00032876,4]
[341255757,1730729443149,-610.84051428,0.00032876,4]
[341255759,1730729443159,-500.0,0.00032876,4]
[341255760,1730729443168,-500.0,0.00032876,4]
[341255761,1730729443177,-500.0,0.00032876,4]
[341255762,1730729443187,-549.43,0.00032876,2]
[341255763,1730729443196,-260.71435898,0.00032876,4]
[341255764,1730729443206,-500.0,0.00032876,4]
[341255765,1730729443216,-512.68875835,0.00032876,4]
[341255766,1730729443226,-500.0,0.00032876,4]
[341255767,1730729443236,-506.75641628,0.00032876,4]
[341255768,1730729443245,-500.0,0.00032876,4]
[341255769,1730729443255,-500.0,0.00032876,4]
[341255770,1730729443268,-500.0,0.00032876,4]
[341255771,1730729443277,-518.56718666,0.00032876,4]
[341255772,1730729443287,-1426.75,0.00032876,4]
[341255773,1730729443296,-500.0,0.00032876,4]
[341255774,1730729443306,-151.0,0.00032876,7]
[341255775,1730729443315,-151.0,0.00032876,7]
[341255776,1730729443324,-151.0,0.00032876,7]
[341255777,1730729443334,-151.0,0.00032876,7]
[341255778,1730729443343,-505.89347649,0.00032876,4]
[341255779,1730729443356,-151.0,0.00032876,7]
[341255780,1730729443367,-151.0,0.00032876,7]
[341255781,1730729443376,-151.0,0.00032876,7]
[341255782,1730729443386,-151.0,0.00032876,7]
[341255783,1730729443396,-151.0,0.00032876,7]
[341255784,1730729443406,-151.0,0.00032876,7]
[341255785,1730729443415,-500.0,0.00032876,4]
[341255786,1730729443426,-500.0,0.00032876,4]
[341255787,1730729443436,-500.0,0.00032876,4]
[341255788,1730729443446,-151.0,0.00032876,7]
[341255789,1730729443455,-155.076598,0.00032876,7]
[341255790,1730729443466,-9451.51,0.00032876,3]
[341255791,1730729443476,-504.00124875,0.00032876,4]
[341255792,1730729443485,-500.0,0.00032876,4]
[341255793,1730729443495,-500.0,0.00032876,4]
[341255794,1730729443505,-448.34030279,0.00032876,4]
[341255795,1730729443515,-151.0,0.00032876,7]
[341255796,1730729443525,-151.0,0.00032876,7]
[341255797,1730729443534,-500.0,0.00032876,4]
[341255798,1730729443544,-500.0,0.00032876,4]
[341255799,1730729443553,-500.0,0.00032876,4]
[341255800,1730729443564,-151.0,0.00032876,7]
[341255801,1730729443573,-151.0,0.00032876,7]
[341255802,1730729443583,-515.07880792,0.00032876,4]
[341255803,1730729443593,-500.0,0.00032876,4]
[341255804,1730729443603,-500.0,0.00032876,4]
[341255805,1730729443612,-500.0,0.00032876,4]
[341255806,1730729443623,-509.56453952,0.00032876,4]
[341255807,1730729443633,-500.0,0.00032876,4]
[341255808,1730729443642,-740.67,0.00032876,4]
[341255809,1730729443652,-509.23631134,0.00032876,4]
[341255810,1730729443662,-509.07513896,0.00032876,4]
[341255811,1730729443672,-500.0,0.00032876,4]
[341255812,1730729443681,-500.0,0.00032876,4]
[341255813,1730729443760,-500.0,0.00032876,4]
[341255814,1730729443770,-500.0,0.00032876,4]
[341255815,1730729443780,-500.0,0.00032876,4]
[341255816,1730729443790,-500.0,0.00032876,4]
[341255817,1730729443800,-500.0,0.00032876,120]
[341255818,1730729443810,-151.0,0.00032876,7]
[341255819,1730729443819,-151.0,0.00032876,7]
[341255820,1730729443829,-500.0,0.00032876,4]
[341255821,1730729443839,-508.47452405,0.00032876,4]
[341255822,1730729443848,-500.0,0.00032876,4]
[341255823,1730729443858,-513.64331408,0.00032876,4]
[341255824,1730729443869,-500.0,0.00032876,4]
[341255825,1730729443879,-500.0,0.00032876,4]
[341255826,1730729443889,-500.0,0.00032876,4]
[341255827,1730729443899,-500.0,0.00032876,4]
[341255828,1730729443909,-500.0,0.00032876,4]
[341255829,1730729443918,-506.43264297,0.00032876,4]
[341255830,1730729443927,-500.0,0.00032876,4]
[341255831,1730729443939,-520.86848035,0.00032876,4]
[341255832,1730729443949,-500.0,0.00032876,4]
[341255833,1730729443959,-503.87225987,0.00032876,4]
[341255834,1730729443968,-500.0,0.00032876,4]
[341255835,1730729443978,-500.0,0.00032876,4]
[341255836,1730729443988,-151.0,0.00032876,7]
[341255837,1730729443997,-151.0,0.00032876,7]
[341255838,1730729444007,-500.0,0.00032876,4]
[341255839,1730729444018,-362.27066338,0.00032876,4]
[341255840,1730729444028,-151.0,0.00032876,7]
[341255841,1730729444038,-151.0,0.00032876,7]
[341255842,1730729444048,-500.0,0.00032876,4]
[341255843,1730729444058,-500.0,0.00032876,4]
[341255844,1730729444068,-505.84222826,0.00032876,4]
[341255845,1730729444078,-500.0,0.00032876,4]
[341255846,1730729444088,-513.03515446,0.00032876,4]
[341255847,1730729444098,-500.0,0.00032876,4]
[341255848,1730729444108,-508.82076321,0.00032876,4]
[341255849,1730729444119,-271.395435,0.00032876,7]
[341255850,1730729444129,-500.0,0.00032876,4]
[341255851,1730729444139,-500.0,0.00032876,4]
[341255852,1730729444149,-507.84885242,0.00032876,4]
[341255853,1730729444158,-151.0,0.00032876,7]
[341255854,1730729444168,-151.0,0.00032876,7]
[341255855,1730729444178,-405.31693232,0.00032876,4]
[341255856,1730729444187,-504.61881938,0.00032876,4]
[341255857,1730729444197,-514.62659162,0.00032876,4]
[341255858,1730729444207,-500.0,0.00032876,4]
[341255859,1730729444216,-500.0,0.00032876,4]
[341255860,1730729444226,-500.0,0.00032876,4]
[341255861,1730729444236,-500.0,0.00032876,4]
[341255862,1730729444246,-500.0,0.00032876,4]
[341255863,1730729444255,-563.1062104,0.00032876,4]
[341255864,1730729444266,-500.0,0.00032876,4]
[341255865,1730729444275,-234.25473882,0.00032876,4]
[341255866,1730729444286,-300.36854448,0.00032876,4]
[341255867,1730729444296,-507.59176255,0.00032876,4]
[341255868,1730729444306,-500.0,0.00032876,4]
[341255869,1730729444316,-508.2709623,0.00032876,4]
[341255870,1730729444326,-500.0,0.00032876,4]
[341255871,1730729444336,-500.0,0.00032876,4]
[341255872,1730729444347,-500.0,0.00032876,4]
[341255873,1730729444360,-500.0,0.00032876,2]
[341255874,1730729444373,-500.0,0.00032876,2]
[341255875,1730729444382,-500.0,0.00032876,2]
[341255876,1730729444393,-500.0,0.00032876,2]
[341255877,1730729444403,-500.0,0.00032876,4]
[341255878,1730729444414,-508.49221836,0.00032876,4]
[341255879,1730729444424,-503.39696246,0.00032876,4]
[341255880,1730729444435,-794.83,0.00032876,4]
[341255881,1730729444445,-500.0,0.00032876,4]
[341255882,1730729444455,-512.44282266,0.00032876,4]
[341255883,1730729444466,-575.40644672,0.00032876,4]
[341255884,1730729444476,-500.0,0.00032876,4]
[341255885,1730729444485,-500.0,0.00032876,4]
[341255886,1730729444495,-500.0,0.00032876,4]
[341255887,1730729444506,-793.41,0.00032876,4]
[341255888,1730729444517,-500.0,0.00032876,4]
[341255889,1730729444527,-151.0,0.00032876,7]
[341255890,1730729444537,-151.0,0.00032876,7]
[341255891,1730729444547,-500.0,0.00032876,4]
[341255892,1730729444556,-500.0,0.00032876,4]
[341255893,1730729444566,-500.0,0.00032876,4]
[341255894,1730729444576,-503.4865443,0.00032876,4]
[341255895,1730729444586,-500.0,0.00032876,4]
[341255896,1730729444595,-500.0,0.00032876,4]
[341255897,1730729444604,-506.20537914,0.00032876,4]
[341255898,1730729444615,-500.0,0.00032876,4]
[341255899,1730729444626,-557.17426363,0.00032876,4]
[341255900,1730729444635,-500.0,0.00032876,4]
[341255901,1730729444644,-500.0,0.00032876,4]
[341255902,1730729444653,-500.0,0.00032876,4]
[341255903,1730729444663,-999.5,0.00032876,4]
[341255904,1730729444673,-513.87221393,0.00032876,4]
[341255905,1730729444683,-600.99,0.00032876,4]
[341255906,1730729444693,-500.0,0.00032876,4]
[341255907,1730729444703,-500.0,0.00032876,4]
[341255908,1730729444713,-500.0,0.00032876,4]
[341255909,1730729444723,-500.0,0.00032876,4]
[341255910,1730729444733,-504.22749147,0.00032876,4]
[341255911,1730729444743,-2103.51,0.00032876,4]
[341255912,1730729444753,-512.28209308,0.00032876,4]
[341255913,1730729444762,-500.0,0.00032876,4]
[341255914,1730729444771,-500.0,0.00032876,4]
[341255915,1730729444780,-500.0,0.00032876,4]
[341255916,1730729444790,-306.0357731,0.00032876,4]
[341255917,1730729444800,-500.0,0.00032876,4]
[341255918,1730729444810,-500.0,0.00032876,4]
[341255919,1730729444819,-500.0,0.00032876,4]
[341255920,1730729444829,-504.37315003,0.00032876,4]
[341255921,1730729444838,-500.0,0.00032876,4]
[341255922,1730729444848,-500.0,0.00032876,4]
[341255923,1730729444857,-520.45922727,0.00032876,4]
[341255924,1730729444869,-500.0,0.00032876,4]
[341255925,1730729444879,-500.0,0.00032876,4]
[341255926,1730729444888,-250.0,0.00032876,4]
[341255927,1730729444898,-1013.27162951,0.00032876,4]
[341255928,1730729444907,-513.9151939,0.00032876,4]
[341255929,1730729444916,-500.0,0.00032876,4]
[341255930,1730729444926,-500.0,0.00032876,4]
[341255931,1730729444936,-500.0,0.00032876,4]
[341255932,1730729444946,-151.0,0.00032876,7]
[341255933,1730729444957,-279.661243,0.00032876,7]
[341255934,1730729444968,-500.0,0.00032876,4]
[341255935,1730729444978,-557.16950813,0.00032876,4]
[341255936,1730729444987,-500.0,0.00032876,4]
[341255937,1730729444998,-1487.72,0.00032876,4]
[341255938,1730729445007,-500.0,0.00032876,4]
[341255939,1730729445017,-500.0,0.00032876,4]
[341255940,1730729445026,-500.0,0.00032876,4]
[341255941,1730729445036,-500.0,0.00032876,4]
[341255942,1730729445046,-462.90761081,0.00032876,4]
[341255943,1730729445058,-181.31464296,0.00032876,4]
[341255944,1730729445070,-616.6175746,0.00032876,4]
[341255945,1730729445080,-508.74857198,0.00032876,4]
[341255946,1730729445090,-500.0,0.00032876,4]
[341255947,1730729445100,-500.0,0.00032876,4]
[341255948,1730729445110,-372.833317,0.00032876,7]
[341255949,1730729445119,-372.833317,0.00032876,7]
[341255950,1730729445129,-512.95539145,0.00032876,4]
[341255951,1730729445138,-624.08793807,0.00032876,4]
[341255952,1730729445147,-500.0,0.00032876,120]
[341255953,1730729445157,-209.21,0.00032876,2]
[341255954,1730729445167,-1256.175354,0.00032877,120]
[341255955,1730729445177,-526.077,0.00032877,120]
[341255956,1730729445187,-1299.11,0.000329,30]
[341255957,1730729445197,-2064.34,0.000329,30]
[341255959,1730729445206,-339.712247,0.00032913,2]
[341255961,1730729445216,-228.901264,0.00032913,2]
[341255962,1730729445226,-641.4413,0.00032913,2]
[341255963,1730729445236,-332.554161,0.00032913,2]
[341255964,1730729445246,-784.96906,0.00032913,2]
[341255965,1730729445256,-1928.23,0.00032999,4]
[341255966,1730729445265,-151.0,0.00032999,14]
[341255967,1730729445275,-151.0,0.00032999,14]
[341255968,1730729445285,-151.0,0.00032999,14]
[341255969,1730729445296,-151.0,0.00032999,14]
[341255970,1730729445308,-151.0,0.00032999,14]
[341255971,1730729445318,-151.0,0.00032999,14]
[341255972,1730729445327,-151.0,0.00032999,14]
[341255973,1730729445338,-151.0,0.00032999,14]
[341255974,1730729445426,-151.0,0.00032999,14]
[341255975,1730729445437,-151.0,0.00032999,14]
[341255976,1730729445447,-8747.23,0.00033,30]
[341255977,1730729445457,-3641.50911293,0.00033,2]
[341255978,1730729445467,-152.0,0.00033,120]
[341255979,1730729445477,-159.0,0.00033,2]
[341255980,1730729445487,-583.1404797,0.00033,120]
[341255981,1730729445498,-151.0,0.00033,14]
[341255982,1730729445507,-151.0,0.00033,14]
[341255984,1730729445517,-231.0,0.00033,2]
[341255986,1730729445527,-151.0,0.00033,14]
[341255987,1730729445538,-193.030953,0.00033,14]
[341255988,1730729445548,-150.0,0.00033,2]
[341255989,1730729445558,-193.030953,0.00033,14]
[341255990,1730729445568,-150.0,0.00033,30]
[341255991,1730729445578,-195.86438,0.00033,14]
[341255992,1730729445588,-151.0,0.00033,14]
[341255993,1730729445600,-372.833317,0.00033,14]
[341255994,1730729445611,-534.6220022,0.00033015,2]
[341255995,1730729445622,-153.996108,0.00033085,2]
[341255996,1730729445632,-170.587668,0.00033085,2]
[341255997,1730729445643,-183.774732,0.00033085,2]
[341255998,1730729445654,-213.305413,0.00033085,2]
[341255999,1730729445664,-157.473943,0.00033085,2]
[341256000,1730729445675,-165.687133,0.00033085,2]
[341256001,1730729445684,-1928.23,0.00033099,4]
[341256002,1730729445694,-5208.14,0.000331,30]
[341256003,1730729445705,-3669.62,0.000331,30]
[341256004,1730729445715,-151.0,0.000331,14]
[341256005,1730729445725,-151.0,0.00033149,14]
[341256006,1730729445736,-1928.23,0.00033149,4]
[341256007,1730729445745,-1928.23,0.00033149,4]
[341256008,1730729445754,-1928.23,0.00033149,4]
[341256009,1730729445765,-1928.23,0.00033149,4]
[341256010,1730729445775,-1928.23,0.00033149,4]
[341256011,1730729445786,-1928.23,0.00033149,4]
[341256012,1730729445796,-333.40722078,0.00033149,4]
[341256013,1730729445950,-3551.41002328,0.0003002,2]
[341256014,1730729445962,-690.0576679,0.0003002,2]
[341256015,1730729445974,-117.07207002,0.0003002,2]
[341256016,1730729445984,-856.754386,0.000328,10]
[341256017,1730729445994,-372.833317,0.00032876,7]
[341256018,1730729446004,-500.0,0.00032876,4]
[341256019,1730729446015,-372.833317,0.00032876,7]
[341256020,1730729446025,-372.833317,0.00033,14]
[341256021,1730729446035,-1594.9731622,0.00033149,4]
[341256022,1730729446046,-500.0,0.0003315,4]
[341256023,1730729446055,-500.0,0.0003315,4]
[341256024,1730729446065,-512.84725117,0.0003315,4]
[341256025,1730729446075,-410.25423262,0.0003315,4]
[341256026,1730729446085,-202.65247142,0.0003315,4]
[341256027,1730729446095,-500.0,0.0003315,4]
[341256028,1730729446106,-500.0,0.0003315,4]
[341256029,1730729446117,-500.0,0.0003315,4]
[341256030,1730729446129,-500.0,0.0003315,4]
[341256031,1730729446138,-500.0,0.0003315,4]
[341256032,1730729446147,-500.0,0.0003315,4]
[341256033,1730729446157,-500.0,0.0003315,4]
[341256034,1730729446168,-500.0,0.0003315,4]
[341256035,1730729446178,-517.28321793,0.0003315,4]
[341256036,1730729446188,-509.7261097,0.0003315,4]
[341256037,1730729446198,-500.0,0.0003315,4]
[341256038,1730729446208,-500.0,0.0003315,4]
[341256039,1730729446219,-500.0,0.0003315,4]
[341256040,1730729446230,-500.0,0.0003315,4]
[341256041,1730729446240,-500.0,0.0003315,4]
[341256042,1730729446249,-512.09013984,0.0003315,4]
[341256043,1730729446259,-508.57678009,0.0003315,4]
[341256044,1730729446270,-500.0,0.0003315,4]
[341256045,1730729446280,-500.0,0.0003315,4]
[341256046,1730729446292,-592.76473755,0.0003315,4]
[341256047,1730729446302,-500.0,0.0003315,4]
[341256048,1730729446312,-500.0,0.0003315,4]
[341256049,1730729446323,-500.0,0.0003315,4]
[341256050,1730729446332,-500.0,0.0003315,4]
[341256051,1730729446343,-500.0,0.0003315,4]
[341256052,1730729446357,-500.0,0.0003315,4]
[341256053,1730729446367,-347.01528027,0.0003315,4]
[341256054,1730729446378,-505.64527036,0.0003315,4]
[341256055,1730729446388,-500.0,0.0003315,4]
[341256056,1730729446399,-500.0,0.0003315,4]
[341256057,1730729446409,-528.84679947,0.0003315,4]
[341256058,1730729446419,-506.4621464,0.0003315,4]
[341256059,1730729446430,-503.79951707,0.0003315,4]
[341256060,1730729446441,-511.50323428,0.0003315,4]
[341256061,1730729446451,-522.69608231,0.0003315,4]
[341256062,1730729446461,-500.0,0.0003315,4]
[341256063,1730729446471,-500.0,0.0003315,4]
[341256064,1730729446480,-517.27516836,0.0003315,4]
[341256065,1730729446490,-500.0,0.0003315,4]
[341256066,1730729446499,-565.73,0.0003315,4]
[341256067,1730729446509,-612.54512685,0.0003315,4]
[341256068,1730729446519,-503.52199589,0.0003315,4]
[341256069,1730729446528,-509.57960337,0.0003315,4]
[341256070,1730729446538,-151.0,0.0003315,14]
[341256071,1730729446547,-151.0,0.0003315,14]
[341256072,1730729446556,-500.0,0.0003315,4]
[341256073,1730729446566,-194.11201751,0.0003315,4]
[341256074,1730729446576,-510.41126386,0.0003315,4]
[341256075,1730729446586,-467.99922247,0.0003315,4]
[341256076,1730729446596,-640.74820553,0.0003315,4]
[341256077,1730729446605,-500.0,0.0003315,4]
[341256078,1730729446615,-516.37506676,0.0003315,4]
[341256079,1730729446627,-513.03205006,0.0003315,4]
[341256080,1730729446637,-510.0481662,0.0003315,4]
[341256081,1730729446647,-151.0,0.0003315,14]
[341256082,1730729446656,-151.0,0.0003315,14]
[341256083,1730729446666,-300.61779061,0.0003315,4]
[341256084,1730729446676,-500.0,0.0003315,4]
[341256085,1730729446685,-500.0,0.0003315,4]
[341256086,1730729446694,-468.48352371,0.0003315,4]
[341256087,1730729446704,-500.0,0.0003315,4]
[341256088,1730729446714,-500.0,0.0003315,4]
[341256089,1730729446723,-508.34112748,0.0003315,4]
[341256090,1730729446733,-521.10292467,0.0003315,4]
[341256091,1730729446742,-518.34946498,0.0003315,4]
[341256092,1730729446752,-616.10679127,0.0003315,4]
[341256093,1730729446761,-500.0,0.0003315,4]
[341256094,1730729446772,-500.0,0.0003315,4]
[341256095,1730729446781,-616.33870394,0.0003315,4]
[341256096,1730729446791,-500.0,0.0003315,4]
[341256097,1730729446801,-500.0,0.0003315,4]
[341256098,1730729446810,-500.0,0.0003315,4]
[341256099,1730729446819,-500.0,0.0003315,4]
[341256100,1730729446828,-500.0,0.0003315,4]
[341256101,1730729446838,-500.0,0.0003315,4]
[341256102,1730729446848,-535.35,0.0003315,4]
[341256103,1730729446858,-500.0,0.0003315,4]
[341256104,1730729446868,-516.19487388,0.0003315,4]
[341256105,1730729446879,-500.0,0.0003315,4]
[341256106,1730729446888,-151.0,0.0003315,14]
[341256107,1730729446897,-509.9301948,0.0003315,4]
[341256108,1730729446975,-506.87039709,0.0003315,4]
[341256109,1730729446986,-500.0,0.0003315,4]
[341256110,1730729446996,-534.02055252,0.0003315,4]
[341256111,1730729447005,-151.0,0.0003315,14]
[341256112,1730729447014,-151.0,0.0003315,14]
[341256113,1730729447024,-529.20196958,0.0003315,4]
[341256114,1730729447033,-500.0,0.0003315,4]
[341256115,1730729447042,-633.79376026,0.0003315,4]
[341256116,1730729447052,-220.5931756,0.0003315,4]
[341256117,1730729447062,-500.0,0.0003315,4]
[341256118,1730729447071,-500.0,0.0003315,4]
[341256119,1730729447081,-500.0,0.0003315,4]
[341256120,1730729447091,-1000.0,0.0003315,15]
[341256121,1730729447100,-500.0,0.0003315,4]
[341256122,1730729447109,-1689.25,0.0003315,4]
[341256123,1730729447118,-612.16,0.0003315,4]
[341256124,1730729447130,-525.17339451,0.0003315,4]
[341256125,1730729447140,-536.47799343,0.0003315,4]
[341256126,1730729447149,-157.51255671,0.0003315,4]
[341256127,1730729447159,-519.08108315,0.0003315,4]
[341256128,1730729447169,-500.0,0.0003315,4]
[341256129,1730729447179,-154.73122,0.0003315,14]
[341256130,1730729447188,-509.05427443,0.0003315,4]
[341256131,1730729447197,-500.0,0.0003315,4]
[341256132,1730729447206,-500.0,0.0003315,4]
[341256133,1730729447216,-529.02228193,0.0003315,4]
[341256134,1730729447226,-200.0,0.0003315,4]
[341256135,1730729447235,-535.02486235,0.0003315,4]
[341256136,1730729447246,-500.0,0.0003315,4]
[341256137,1730729447256,-500.0,0.0003315,4]
[341256138,1730729447265,-510.13318719,0.0003315,4]
[341256139,1730729447275,-500.0,0.0003315,4]
[341256140,1730729447285,-500.0,0.0003315,4]
[341256141,1730729447294,-588.38,0.0003315,4]
[341256142,1730729447304,-151.0,0.0003315,14]
[341256143,1730729447314,-151.0,0.0003315,14]
[341256144,1730729447323,-500.0,0.0003315,4]
[341256145,1730729447333,-500.0,0.0003315,4]
[341256146,1730729447343,-610.61051396,0.0003315,4]
[341256147,1730729447359,-529.76417963,0.0003315,4]
[341256148,1730729447369,-513.45530635,0.0003315,4]
[341256149,1730729447385,-573.30123702,0.0003315,4]
[341256150,1730729447394,-500.46874758,0.0003315,4]
[341256151,1730729447405,-500.0,0.0003315,4]
[341256152,1730729447415,-500.0,0.0003315,4]
[341256153,1730729447424,-500.0,0.0003315,4]
[341256154,1730729447433,-500.0,0.0003315,4]
[341256155,1730729447443,-520.8405576,0.0003315,4]
[341256156,1730729447452,-500.0,0.0003315,4]
[341256157,1730729447462,-500.0,0.0003315,4]
[341256158,1730729447472,-500.0,0.0003315,4]
[341256159,1730729447482,-500.0,0.0003315,4]
[341256160,1730729447491,-574.19,0.0003315,4]
[341256161,1730729447501,-592.39511425,0.0003315,4]
[341256162,1730729447510,-632.35082532,0.0003315,4]
[341256163,1730729447520,-577.49792022,0.0003315,4]
[341256164,1730729447530,-500.0,0.0003315,4]
[341256165,1730729447539,-500.0,0.0003315,4]
[341256166,1730729447548,-193.030953,0.0003315,14]
[341256167,1730729447558,-193.030953,0.0003315,14]
[341256168,1730729447567,-500.0,0.0003315,4]
[341256169,1730729447578,-500.0,0.0003315,4]
[341256170,1730729447588,-193.030953,0.0003315,14]
[341256171,1730729447598,-193.030953,0.0003315,14]
[341256172,1730729447608,-500.0,0.0003315,4]
[341256173,1730729447618,-403.93895721,0.0003315,4]
[341256174,1730729447632,-500.0,0.0003315,4]